[Event "German Bundesliga 2022-23"]
[Site "Germany"]
[Date "2022.11.27"]
[Round "4.3"]
[White "Kamsky, Gata"]
[Black "Pavlidis, Antonios"]
[Result "1/2-1/2"]
[ECO "D00"]
[WhiteElo "2666"]
[BlackElo "2551"]
[Annotator "TA"]
[PlyCount "53"]
[EventDate "2022.10.21"]
[EventType "team-tourn"]
[EventCountry "GER"]
[SourceTitle "playchess.com"]
[Source "ChessBase"]
[SourceQuality "1"]
[TimeControl "40/6000+30:3000+30"]

{[%evp 9,53,6,28,24,33,5,11,7,-5,8,73,72,68,24,39,27,39,10,0,8,37,33,68,69,72,0,0,0,0,0,0,-19,-20,-24,-6,-8,0,-114,-114,-127,-112,-109,-114,-112,-91,-82]} 1. d4 {[%emt 0:00:18]} d5 {[%emt 0:00:26]} 2. Bf4 {[%emt 0:00:47]} c5 {[%emt 0:01:21]} 3. e3 {[%emt 0:00:13]} Nc6 {[%emt 0:00:38]} 4. c3 {[%emt 0:00:10]} Qb6 {[%emt 0:05:53]} 5. Qb3 {[%emt 0:00:35]} c4 {[%emt 0:01:19]} 6. Qc2 {[%emt 0:00:06] D00: 1 d4 d5: Unusual lines.} e5 $1 {[%emt 0:00:22][%mdl 4] is currently scoring better than 6...Bf5.} 7. Bxe5 {[%emt 0:08:29] With the idea Bf4.} (7. dxe5 $5 Bf5 8. Qc1 $11 (8. Qxf5 Qxb2 9. e6 fxe6 $17)) 7... Bf5 {[%emt 0:13:30][%mdl 64] [#]} 8. Qc1 {[%emt 0:01:09] The position is equal.} (8. Qxf5 $2 Qxb2 9. Nd2 Qxa1+ 10. Qb1 Qxb1+ 11. Nxb1 Nxe5 12. dxe5 f6 13. exf6 Nxf6 $19) 8... Nxe5 {[%emt 0:00:08]} 9. dxe5 {[%emt 0:00:03][%cal Ob2b3] [#]} O-O-O $5 $146 {[%emt 0:01:59][%mdl 8] New and interesting.} (9... f6 $11 {remains equal.}) ({Predecessor:} 9... f6 10. Nd2 Bc5 11. exf6 Nxf6 12. Ngf3 O-O 13. Be2 Ng4 14. Nd4 Bxd4 15. cxd4 Rae8 {0-1 (30) Djordjevic,V (2382)-Bluebaum,M (2647) Chess.com INT 2021}) 10. Nf3 {[%emt 0:00:53]} f6 {[%emt 0:00:12]} 11. e6 {[%emt 0:00:37]} Bxe6 {[%emt 0:05:35]} 12. Nbd2 {[%emt 0:36:20]} f5 {[%emt 0:23:58][%cal Of5f4]} 13. g3 {[%emt 0:02:03]} Nf6 {[%emt 0:02:18]} 14. Nd4 {[%emt 0:01:38]} Bc5 {[%emt 0:01:33]} 15. Bg2 {[%emt 0:02:26]} g5 {[%emt 0:02:53][%cal Of5f4]} 16. b3 {[%emt 0:03:32] Prevents f4.} f4 {[%emt 0:10:36]} 17. bxc4 {[%emt 0:01:41]} (17. exf4 $16 gxf4 18. bxc4 (18. N2f3 Ne4 $11)) 17... fxe3 $1 $11 {[%emt 0:00:03]} (17... dxc4 $2 18. Rb1 (18. gxf4 Bd5 $14) 18... Bxd4 19. cxd4 $18 (19. exd4 Qd6 $18)) 18. fxe3 {[%emt 0:00:07] aiming for 0-0.} Ng4 $1 {[%emt 0:00:03]} 19. Rb1 {[%emt 0:08:42]} Qd6 {[%emt 0:00:17]} 20. N2f3 {[%emt 0:11:00]} (20. Qb2 b6 21. cxd5 Bxd5 22. Bxd5 Qxd5 $15) (20. O-O $5) 20... Bd7 {[%emt 0:15:19][%cal Og4e3] White must now prevent ...Nxe3! This pair of bishops is nice.} 21. O-O {[%emt 0:00:45]} ({But not} 21. Nxg5 Qf6 22. Ngf3 {[#]} (22. Qb2 $2 b6 $19) 22... Nxe3 $1 $17) 21... Rde8 {[%emt 0:00:02]} 22. Nxg5 {[%emt 0:12:43] Strongly threatening Nf7.} Qh6 {[%emt 0:11:40][%csl Gg4][%cal Rh6h2]} 23. Ngf3 {[%emt 0:00:07]} (23. h4 $11) 23... Qxe3+ $17 {[%emt 0:01:46] Black is better.} 24. Kh1 {[%emt 0:03:30]} Nf2+ {[%emt 0:02:44]} 25. Rxf2 {[%emt 0:06:13]} Qxf2 {[%emt 0:00:03]} 26. cxd5 {[%emt 0:00:04][%cal Od4e6]} Rhf8 {[%emt 0:01:05]} ({Much less strong is} 26... Qxa2 27. Nd2 Qa3 28. Qd1 $11) 27. Ng5 {[%emt 0:02:37] Weighted Error Value: White=0.20 (precise) /Black=0.10 (very precise)} 1/2-1/2

[Event "German Bundesliga 2022-23"]
[Site "Germany"]
[Date "2022.11.27"]
[Round "4.3"]
[White "Efimenko, Zahar"]
[Black "Plenca, Julijan"]
[Result "1-0"]
[ECO "C78"]
[WhiteElo "2583"]
[BlackElo "2437"]
[Annotator "TA"]
[PlyCount "111"]
[EventDate "2022.10.21"]
[EventType "team-tourn"]
[EventCountry "GER"]
[SourceTitle "playchess.com"]
[Source "ChessBase"]
[SourceQuality "1"]
[TimeControl "40/6000+30:3000+30"]

{[%evp 16,111,28,0,0,0,32,0,25,26,22,16,23,31,26,33,31,25,27,0,53,20,18,11,29,26,31,20,37,24,56,13,16,0,27,15,39,33,111,124,122,87,110,92,112,105,268,251,226,162,409,412,677,677,835,838,904,696,912,866,797,734,666,602,590,552,566,569,557,509,590,254,992,947,1024,568,564,511,476,475,525,522,521,522,483,481,460,445,435,422,610,607,713,533,512,503,606,599]} 1. e4 {[%emt 0:00:55]} e5 {[%emt 0:00:22]} 2. Nf3 {[%emt 0:00:27]} Nc6 {[%emt 0:00:18]} 3. Bb5 {[%emt 0:00:09]} a6 {[%emt 0:00:12]} 4. Ba4 {[%emt 0:00:07]} Nf6 {[%emt 0:00:28]} 5. O-O {[%emt 0:00:17]} b5 {[%emt 0:00:20]} 6. Bb3 {[%emt 0:00:11]} Bc5 {[%emt 0:00:06]} 7. c3 {[%emt 0:01:48]} d6 {[%emt 0:00:15]} 8. d4 {[%emt 0:00:13]} Bb6 {[%emt 0:00:05]} 9. Be3 $1 {[%emt 0:00:32][%mdl 4] is currently scoring better than 9.a4.} O-O {[%emt 0:02:01] C78: Ruy Lopez: Archangelsk and Möller Defences.} 10. Nbd2 {[%emt 0:00:16]} h6 {[%emt 0:00:34]} (10... Re8 {feels hotter.} 11. a4 Bg4 12. dxe5 Bxe3 13. exf6 Bxd2 14. Qxd2 Bxf3 15. Qg5 Qxf6 16. Qxf6 gxf6 17. gxf3 Ne5) 11. h3 {[%emt 0:00:46]} Rb8 {[%emt 0:07:26] The position is equal.} 12. Re1 {[%emt 0:02:15]} Re8 {[%emt 0:00:50]} 13. Bc2 {[%emt 0:02:32]} Bd7 {[%emt 0:01:13]} 14. a3 {[%emt 0:03:55]} Nh7 {[%emt 0:08:15] [#]} 15. Nf1 $146 {[%emt 0:02:50]} ({Predecessor:} 15. b4 Qf6 16. Nf1 Nf8 17. Ng3 Rbd8 18. Nh5 Qe7 19. Qd2 Kh7 20. a4 Rb8 21. Ng3 {0-1 (49) Gorbanovsky,O (2308)-Sirosh,I (2314) Karpacz 2015}) 15... a5 {[%emt 0:19:43]} 16. b3 {[%emt 0:06:56]} Qf6 {[%emt 0:06:46]} 17. Ng3 {[%emt 0:06:36]} (17. Rc1 {seems wilder.} Ng5 18. Nxg5 exd4 19. Nh7) 17... g6 {[%emt 0:08:11]} (17... Ng5 $11 18. Nxg5 hxg5) 18. dxe5 {[%emt 0:22:47]} ({Weaker is} 18. Bxh6 g5 19. Bd3 exd4 20. Bxb5 dxc3 $17) 18... Nxe5 {[%emt 0:01:28]} 19. Nxe5 {[%emt 0:00:11]} Qxe5 {[%emt 0:01:42]} (19... Bxe3 {simplifies} 20. Rxe3 Qxe5 21. Qd2 b4) 20. Qd2 {[%emt 0:02:36]} Bxe3 {[%emt 0:04:03]} 21. Qxe3 {[%emt 0:02:29]} h5 {[%emt 0:01:56]} 22. Rad1 {[%emt 0:02:45]} Qg7 {[%emt 0:05:28]} 23. Qd4 {[%emt 0:02:29]} Nf8 {[%emt 0:02:38]} 24. f4 {[%emt 0:04:57][%cal Bf2f4,Bf4f5][%mdl 32]} Rb6 {[%emt 0:06:22][%cal Ob5b4]} 25. Ne2 {[%emt 0:04:22][%cal Bg3e2,Be2f4,Bf4h5][%mdl 32]} Bc8 {[%emt 0:05:35]} (25... Qxd4+ {simplifies} 26. cxd4 b4 27. a4 c5) 26. f5 {[%emt 0:08:17]} Qe5 {[%emt 0:01:17] Inhibits Nf4.} (26... Bb7 $14) 27. Qf2 $16 {[%emt 0:04:06]} Bb7 {[%emt 0:01:49]} 28. b4 {[%emt 0:00:52]} a4 {[%emt 0:09:55]} (28... Bxe4 $2 29. fxg6 Nxg6 30. Ng3 $18) 29. Bb1 {[%emt 0:01:28]} Qf6 {[%emt 0:03:10]} (29... Bxe4 $2 30. fxg6 Nxg6 31. Ng3 $18) 30. Nf4 {[%emt 0:06:06]} Nd7 $2 {[%emt 0:04:38] [#] Black cannot hold the game after this.} (30... Qxc3 $2 31. Rc1 Qf6 32. Rxc7 $18) (30... h4 $16 {was called for.}) 31. fxg6 $1 $18 {[%emt 0:05:06]} fxg6 {[%emt 0:00:08]} 32. Qg3 {[%emt 0:00:25]} Ne5 $2 {[%emt 0:03:21]} (32... h4 {might work better.} 33. Qxg6+ Qxg6 34. Nxg6 Nf6) 33. Nxh5 {[%emt 0:00:56]} Qe7 {[%emt 0:01:25]} (33... Qh8 $142) 34. Rf1 {[%emt 0:01:33] Strongly threatening Nf6+.} Rf8 {[%emt 0:01:11] Prevents Nf6+.} 35. Ba2+ {[%emt 0:04:32]} Kh8 {[%emt 0:00:40] [#]} 36. Qe3 $1 {[%emt 0:00:50] White wants to mate with Qh6+.} d5 {[%emt 0:01:21]} (36... Rxf1+ 37. Rxf1) 37. Rxf8+ {[%emt 0:02:46]} Qxf8 {[%emt 0:00:05]} 38. Rf1 {[%emt 0:02:20]} Qe7 {[%emt 0:00:03]} 39. Qh6+ {[%emt 0:01:13]} Kg8 {[%emt 0:00:05]} 40. exd5 {[%emt 0:01:22] White threatens d6+ and mate.} ({And not} 40. Bxd5+ Bxd5 41. exd5 gxh5 42. Qxh5 Rd6 $15) 40... Nc4 {[%emt 0:00:04] Inhibits d6.} 41. Bxc4 {[%emt 0:52:54]} bxc4 {[%emt 0:50:06]} 42. Nf4 {[%emt 0:00:00]} Qe3+ {[%emt 0:00:00]} 43. Kh2 {[%emt 0:00:00]} (43. Kh1 $142 Rf6 44. Qg5) 43... Rf6 $2 {[%emt 0:00:00]} (43... Qe5 44. Kg1 Rf6) 44. Qg5 {[%emt 0:00:00] White is clearly winning.} (44. Rf3 Qe5 $18) 44... Kf7 {[%emt 0:00:00]} 45. Ne6 {[%emt 0:00:00]} Qxg5 {[%emt 0:00:00]} 46. Nxg5+ {[%emt 0:00:00][%mdl 4096] Endgame KRB-KRN} Ke7 {[%emt 0:00:00]} 47. Re1+ {[%emt 0:00:00]} Kd8 {[%emt 0:00:00]} 48. Ne6+ {[%emt 0:00:00]} Kc8 {[%emt 0:00:00]} 49. Nc5 {[%emt 0:00:00][%cal Re1e8]} Rf8 {[%emt 0:00:00] Prevents Re8+.} 50. Re5 {[%emt 0:00:00]} ({Not} 50. Nxa4 Bxd5 51. Nc5 c6 $18) 50... Rd8 {[%emt 0:00:00]} 51. Nxa4 {[%emt 0:00:00]} Bxd5 {[%emt 0:00:00]} 52. Nc5 {[%emt 0:00:00]} c6 {[%emt 0:00:00]} (52... Bc6 $142 53. Rg5 Be8) 53. Kg3 {[%emt 0:00:00]} Rf8 {[%emt 0:00:00]} 54. Re1 {[%emt 0:00:00] Prevents Rf1.} Rf5 {[%emt 0:00:00]} 55. h4 {[%emt 0:00:00] Against Rg5+} Bf7 {[%emt 0:00:00]} 56. a4 {[%emt 0:00:00] Weighted Error Value: White=0.49/Black=0.53} 1-0

[Event "German Bundesliga 2022-23"]
[Site "Germany"]
[Date "2022.11.27"]
[Round "4.4"]
[White "Burg, Twan"]
[Black "Kollars, Dmitrij"]
[Result "1/2-1/2"]
[ECO "C47"]
[WhiteElo "2519"]
[BlackElo "2611"]
[Annotator "TA"]
[PlyCount "46"]
[EventDate "2022.10.21"]
[EventType "team-tourn"]
[EventCountry "GER"]
[SourceTitle "playchess.com"]
[Source "ChessBase"]
[SourceQuality "1"]
[TimeControl "40/6000+30:3000+30"]

{[%evp 16,46,0,0,5,4,24,0,11,14,8,10,11,10,20,18,52,0,0,0,8,8,3,0,0,0,0,0,0,0,0,0,-4]} 1. e4 {[%emt 0:00:04]} e5 {[%emt 0:00:12]} 2. Nf3 {[%emt 0:00:05]} Nc6 {[%emt 0:00:04]} 3. Nc3 {[%emt 0:00:03]} Nf6 {[%emt 0:00:29]} 4. d4 {[%emt 0:00:08]} exd4 {[%emt 0:00:37]} 5. Nxd4 {[%emt 0:00:06]} Bb4 {[%emt 0:00:03]} 6. Nxc6 {[%emt 0:00:11]} bxc6 {[%emt 0:00:05]} 7. Bd3 {[%emt 0:00:07]} O-O {[%emt 0:00:39]} 8. O-O {[%emt 0:00:05]} d5 {[%emt 0:00:07]} 9. Bd2 {[%emt 0:00:11]} Rb8 {[%emt 0:01:12] C47: Scotch Four Knights and Four Knights with 4 g3.} 10. Re1 {[%emt 0:00:37]} Bg4 {[%emt 0:00:25] Against e5} 11. Qc1 {[%emt 0:00:31]} (11. f3 $5 {[%cal Rf3g4]} Be6 12. b3 $11) 11... Re8 {[%emt 0:01:02]} 12. exd5 {[%emt 0:00:22]} cxd5 {[%emt 0:04:03] [#]} 13. Rxe8+ $146 {[%emt 0:10:52]} ({Predecessor:} 13. h3 Bh5 14. a3 Bc5 15. b4 Bf8 16. Bf4 Qd7 17. Qd2 Bd6 18. Bg5 Be5 19. Bf4 {1-0 (35) Matlakov,M (2652)-Pichot,A (2600) Riga 2021}) 13... Qxe8 {[%emt 0:03:10]} 14. Bg5 {[%emt 0:01:49] [#] Black must now prevent Bxf6.} Bxc3 {[%emt 0:20:33]} 15. bxc3 {[%emt 0:00:35] And now Bxf6 would win.} Ne4 {[%emt 0:00:24]} 16. Bxe4 {[%emt 0:09:37]} ({White should play} 16. Be3 $1 $14 Bf5 17. Bxa7) 16... dxe4 $11 {[%emt 0:00:14] The position is equal.} 17. Qf4 {[%emt 0:00:21][%csl LRc7,LRg4]} Qd7 {[%emt 0:02:42]} 18. Qxe4 {[%emt 0:02:03]} Bf5 {[%emt 0:00:54][%cal Bg4f5,Bf5c2,Bc2b1][%mdl 32]} 19. Qd4 {[%emt 0:01:33]} Qxd4 {[%emt 0:00:22]} 20. cxd4 {[%emt 0:00:01]} Bxc2 {[%emt 0:00:06]} 21. Bf4 {[%emt 0:00:14]} Rb1+ {[%emt 0:02:02]} 22. Rxb1 {[%emt 0:00:13]} Bxb1 {[%emt 0:00:03]} 23. a3 {[%emt 0:00:31]} c6 {[%emt 0:00:05] A balanced but interesting game.   Weighted Error Value: White=0.06 (flawless) /Black=0.08 (flawless)} 1/2-1/2

[Event "German Bundesliga 2022-23"]
[Site "Germany"]
[Date "2022.11.27"]
[Round "4.4"]
[White "Koelle, Tobias"]
[Black "Edouard, Romain"]
[Result "0-1"]
[ECO "D37"]
[WhiteElo "2430"]
[BlackElo "2548"]
[Annotator "TA"]
[PlyCount "62"]
[EventDate "2022.10.21"]
[EventType "team-tourn"]
[EventCountry "GER"]
[SourceTitle "playchess.com"]
[Source "ChessBase"]
[SourceQuality "1"]
[TimeControl "40/6000+30:3000+30"]

{[%evp 9,62,35,30,28,31,32,34,28,29,10,33,28,40,35,31,28,52,58,68,28,35,22,19,31,23,-22,-18,-33,-12,-22,-12,-6,-10,-249,-129,-112,-110,-358,-317,-314,-110,-294,-292,-299,-276,-303,-302,-285,-283,-574,-563,-510,-500,-456,-410]} 1. d4 {[%emt 0:00:05]} Nf6 {[%emt 0:00:11]} 2. c4 {[%emt 0:00:05]} e6 {[%emt 0:00:04]} 3. Nf3 {[%emt 0:00:02]} d5 {[%emt 0:00:07]} 4. Nc3 {[%emt 0:00:04]} a6 {[%emt 0:00:32]} 5. cxd5 {[%emt 0:00:25]} exd5 {[%emt 0:00:02]} 6. Bg5 {[%emt 0:00:07] D37: Queen's Gambit Declined: 5 Bf4.} Be6 {[%emt 0:00:09]} 7. e3 {[%emt 0:00:04]} Nbd7 {[%emt 0:00:22]} 8. Bd3 {[%emt 0:00:06] White is slightly better.} c6 {[%emt 0:03:03]} 9. O-O {[%emt 0:01:49]} Bd6 {[%emt 0:00:08] Against Ne5} (9... h6 $5 {[%cal Rh6g5]} 10. Bf4 g5 $11) 10. Bf4 {[%emt 0:00:18]} Qb8 {[%emt 0:00:29]} 11. Qd2 {[%emt 0:01:47]} h6 {[%emt 0:01:07][%cal Bh7h6,Bh6h5,Bh5g4][%mdl 32]} 12. h3 {[%emt 0:03:47]} g5 {[%emt 0:00:13]} 13. Bxd6 {[%emt 0:02:02]} Qxd6 {[%emt 0:00:05]} 14. Nh2 {[%emt 0:09:12]} (14. b4 $5 {[%cal Ra2a4]}) 14... Rg8 {[%emt 0:02:03] [#]} 15. b4 $146 {[%emt 0:08:27]} ({Predecessor:} 15. f4 gxf4 16. exf4 Bxh3 17. Rae1+ Kf8 18. Rf2 Bg4 19. Re5 Rg7 20. Qe3 Ng8 21. Nxg4 Rxg4 {0-1 (43) Salomon,J (2509)-Demchenko,A (2671) Teplice 2019}) 15... h5 {[%emt 0:01:23]} (15... Qxb4 16. Rfb1 Qd6 17. Rxb7 $16) 16. a4 {[%emt 0:08:50]} g4 {[%emt 0:00:39]} 17. hxg4 {[%emt 0:00:08]} hxg4 {[%emt 0:00:17]} 18. g3 {[%emt 0:05:40]} Rh8 {[%emt 0:05:37]} (18... Ke7 {is interesting.} 19. b5 Rh8 20. Kg2 cxb5 21. axb5 a5) 19. b5 {[%emt 0:12:55]} c5 {[%emt 0:14:49]} 20. bxa6 {[%emt 0:01:20]} bxa6 {[%emt 0:00:13]} 21. dxc5 $2 {[%emt 0:12:13]} (21. Kg2 $11 {and White has nothing to worry.}) 21... Qxc5 {[%emt 0:01:48]} (21... Qe5 $19 {Hoping for ...Qg5.} 22. c6 Nc5) 22. Rac1 {[%emt 0:13:25][%cal Oc3b5] Strongly threatening Nb5!} Qf8 {[%emt 0:12:16] ...Qg7 is the strong threat.} 23. e4 $2 {[%emt 0:03:52]} (23. f4 $17 gxf3 24. Nxf3) 23... Ne5 $19 {[%emt 0:04:44][%cal Oh8h2,Bd7e5,Be5d3,Bd3c1][%mdl 32] And now ...Rxh2! would win.} 24. f4 {[%emt 0:11:02]} Qh6 $2 {[%emt 0:07:50]} (24... Nxd3 $19 {has better winning chances.} 25. Qxd3 Qc5+ 26. Kh1 dxe4) 25. exd5 $2 {[%emt 0:03:04]} (25. Nxd5 $17 Bxd5 26. exd5 Nf3+ 27. Rxf3 (27. Nxf3 $2 Qh1+ 28. Kf2 Qxf3+ 29. Ke1 Qxg3+ 30. Kd1 Nxd5 $19) 27... gxf3 28. d6) 25... Nxd3 {[%emt 0:01:40]} ({But not} 25... Nxd5 26. Be4 Nxf4 27. Rxf4 $18 (27. Bxa8 $2 {loses.} Nh3+ 28. Kh1 Qxd2 $19) (27. gxf4 Rd8 $16)) 26. dxe6 {[%emt 0:00:06]} Nxc1 {[%emt 0:00:25] Dancing on a razor blade.} 27. exf7+ {[%emt 0:01:19]} Kxf7 {[%emt 0:00:56]} 28. Rxc1 {[%emt 0:00:37][%cal Oc3e4] [#]} Rac8 $1 {[%emt 0:01:12] Threatens to win with ...Qh3.} 29. Rc2 $2 {[%emt 0:01:39] [#]} (29. Qa2+ Kg7 30. Qf2) 29... Qxh2+ $1 {[%emt 0:07:46][%mdl 512] Black is clearly winning.} 30. Qxh2 {[%emt 0:00:03]} Rxh2 {[%emt 0:00:04]} 31. Kxh2 {[%emt 0:00:09]} Ne4 {[%emt 0:00:27] Weighted Error Value: White=0.62/Black=0.28 (precise)} 0-1

[Event "German Bundesliga 2022-23"]
[Site "Germany"]
[Date "2022.11.27"]
[Round "4.5"]
[White "Zilka, Stepan"]
[Black "Swinkels, Robin"]
[Result "1/2-1/2"]
[ECO "B62"]
[WhiteElo "2602"]
[BlackElo "2514"]
[Annotator "TA"]
[PlyCount "63"]
[EventDate "2022.10.21"]
[EventType "team-tourn"]
[EventCountry "GER"]
[SourceTitle "playchess.com"]
[Source "ChessBase"]
[SourceQuality "1"]
[TimeControl "40/6000+30:3000+30"]

{[%evp 15,63,37,40,40,38,7,17,12,36,18,4,0,0,0,0,0,0,-41,-35,-46,-41,-99,-33,-47,-38,-36,-41,-48,-29,-50,-46,-63,-62,-103,-78,-80,-69,-60,-64,-174,0,0,0,0,0,0,0,0,0,0]} 1. e4 {[%emt 0:00:06]} c5 {[%emt 0:00:04]} 2. Nf3 {[%emt 0:00:05]} d6 {[%emt 0:00:07]} 3. d4 {[%emt 0:00:05]} cxd4 {[%emt 0:00:04]} 4. Nxd4 {[%emt 0:00:04]} Nf6 {[%emt 0:00:07]} 5. Nc3 {[%emt 0:00:03]} Nc6 {[%emt 0:00:17]} 6. Bg5 {[%emt 0:00:21]} e6 {[%emt 0:00:21]} 7. Qd3 {[%emt 0:00:19]} Be7 {[%emt 0:00:25]} 8. O-O-O {[%emt 0:00:57]} O-O {[%emt 0:00:21]} 9. h4 {[%emt 0:17:34] B62: Sicilian: Richter-Rauzer: 6...e6: Unusual White 7th moves.} Bd7 {[%emt 0:03:59] seems to push 9...Nxd4 aside.} 10. Be2 {[%emt 0:05:40]} Nxd4 {[%emt 0:45:01]} 11. Qxd4 {[%emt 0:00:15] [#]} Qc7 $146 {[%emt 0:00:18]} ({Predecessor:} 11... Bc6 12. Kb1 Qc7 13. f3 Rfd8 14. g4 a6 15. Qd2 b5 16. Bxf6 Bxf6 17. g5 Be5 {1-0 (35) Fogarasi,T (2436)-Wittmann,W (2337) Budapest 2004}) 12. f4 {[%emt 0:14:07]} (12. h5 {simplifies} h6 13. Bxf6 Bxf6 14. Qxd6 Qxd6 15. Rxd6 Bc6 16. Bf3) 12... Rfd8 {[%emt 0:16:14]} 13. f5 {[%emt 0:00:49]} Rac8 {[%emt 0:05:56]} 14. fxe6 {[%emt 0:14:42]} Bxe6 {[%emt 0:00:30]} 15. Rhf1 {[%emt 0:04:35]} a6 {[%emt 0:18:23]} 16. Bxf6 {[%emt 0:02:38]} Bxf6 {[%emt 0:00:27]} 17. Rxf6 {[%emt 0:00:07]} gxf6 {[%emt 0:00:01]} 18. Rd3 {[%emt 0:08:56] [#] Inhibits d5.} ({White should play} 18. Qxf6 $15 Qc5 19. Qf4) 18... Qe7 {[%emt 0:04:00]} (18... d5 $1 $17 19. exd5 {[#]} Rxd5 $3 {[%mdl 512]} 20. Qxf6 Rf5) 19. Rg3+ $15 {[%emt 0:01:16]} Kh8 {[%emt 0:00:04] Hoping for ...Rg8.} 20. Rf3 {[%emt 0:01:21]} Rc5 {[%emt 0:01:36]} 21. Rxf6 {[%emt 0:00:11]} Re5 {[%emt 0:00:05]} 22. Qf2 {[%emt 0:01:32][%cal Oe2g4]} b5 {[%emt 0:06:08][%cal Bb7b5,Bb5b4][%mdl 32] And now ...b4 would win.} 23. Bd3 {[%emt 0:02:25]} Rg8 {[%emt 0:00:19][%cal Og8g2] Threatens to win with ...Rxg2!} 24. Rf4 {[%emt 0:00:30]} b4 {[%emt 0:05:17] Inhibits a3.} 25. Ne2 {[%emt 0:00:15]} ({Wrong is} 25. Nd5 $2 Bxd5 26. g4 Be6 $19) 25... a5 {[%emt 0:00:15]} ({Don't play} 25... Bxa2 26. b3 $16) 26. Nd4 {[%emt 0:06:03]} Qa7 $1 {[%emt 0:00:14]} (26... Bxa2 $2 27. b3 $18) 27. h5 {[%emt 0:00:06]} (27. g3 $15) 27... Rxh5 $2 {[%emt 0:00:54]} ({Resist} 27... Bxa2 28. b3 Bxb3 29. cxb3 $16) ({Better is} 27... a4 $19 {White must now prevent ...Reg5.} 28. h6 Reg5) 28. Rh4 $1 $11 {[%emt 0:01:26] The position is equal.} Rxh4 {[%emt 0:00:11]} 29. Qf6+ {[%emt 0:00:43]} Rg7 {[%emt 0:00:01]} 30. Qd8+ {[%emt 0:00:06]} Rg8 {[%emt 0:00:02]} 31. Qf6+ {[%emt 0:00:05]} Rg7 {[%emt 0:00:01]} 32. Qd8+ {[%emt 0:00:05] Weighted Error Value: White=0.18 (very precise) /Black=0.18 (very precise)} 1/2-1/2

[Event "German Bundesliga 2022-23"]
[Site "Germany"]
[Date "2022.11.27"]
[Round "4.5"]
[White "Hracek, Zbynek"]
[Black "Richter, Nils"]
[Result "1/2-1/2"]
[ECO "B13"]
[WhiteElo "2548"]
[BlackElo "2387"]
[Annotator "TA"]
[PlyCount "53"]
[EventDate "2022.10.21"]
[EventType "team-tourn"]
[EventCountry "GER"]
[SourceTitle "playchess.com"]
[Source "ChessBase"]
[SourceQuality "1"]
[TimeControl "40/6000+30:3000+30"]

{[%evp 10,53,22,18,14,18,25,27,20,25,18,18,35,0,6,-90,32,13,10,0,8,-109,-104,-114,-124,-116,-107,-112,-112,-109,-51,-120,-43,-65,-61,-64,-15,-10,-8,-8,-17,-8,0,0,0,-20]} 1. e4 {[%emt 0:00:04]} c6 {[%emt 0:00:08]} 2. d4 {[%emt 0:00:33]} d5 {[%emt 0:00:08]} 3. exd5 {[%emt 0:00:38]} cxd5 {[%emt 0:00:10]} 4. Bd3 {[%emt 0:00:03]} Nc6 {[%emt 0:00:28]} 5. c3 {[%emt 0:00:06]} Qc7 {[%emt 0:00:13]} 6. Ne2 {[%emt 0:01:26]} e5 {[%emt 0:04:17] Inhibits Bf4. B13: Caro-Kann: Exchange Variation and Panov-Botvinnik Attack.} 7. dxe5 {[%emt 0:01:10]} Nxe5 {[%emt 0:00:09]} 8. Bb5+ {[%emt 0:21:02]} Bd7 {[%emt 0:00:09] White has an edge.} 9. Bxd7+ {[%emt 0:01:32]} Qxd7 {[%emt 0:00:21]} 10. O-O {[%emt 0:00:09]} Nf6 {[%emt 0:05:37]} (10... Bc5 {keeps more tension.} 11. Re1 Ne7 12. Nf4 f6) 11. Re1 {[%emt 0:04:09] Hoping for Nd4.} Bd6 {[%emt 0:03:46][%cal Bf8d6,Bd6c7,Bc7b6][%mdl 32] [#]} 12. Bg5 $146 {[%emt 0:11:16] [#]} (12. Bf4 $11 {remains equal.} O-O 13. Bxe5 Bxe5 14. Nd2) ({Predecessor:} 12. Nd4 O-O 13. Bf4 Rfe8 14. Bxe5 Bxe5 15. Na3 a6 16. Nac2 Rad8 17. Qf3 Qg4 18. Qxg4 Nxg4 {½-½ (29) Juknis,P (2169)-Bagdanskis,D (1957) Vilnius 2022}) 12... Qf5 {[%emt 0:14:24]} ({Much weaker is} 12... Ne4 13. Bf4 $11) (12... Qg4 $1 $17 {...Nf3+ is the strong threat.} 13. Nd2 Nd3 14. Bxf6 Nxe1 15. Qxe1 gxf6) 13. Bxf6 {[%emt 0:20:30]} (13. Qa4+ {simplifies} Kf8 14. Qf4 Qxf4 15. Bxf4 Rd8 16. Bxe5 Bxe5 17. Nd4) 13... Qxf6 {[%emt 0:01:21]} 14. Qxd5 {[%emt 0:15:26]} O-O-O {[%emt 0:00:22][%cal Od6a3] White must now prevent ...Ba3!} 15. Ng3 {[%emt 0:09:55]} (15. Nd4 $1 $11) 15... Bc7 $36 {[%emt 0:05:33][%mdl 2048] Black is on the roll.} 16. Qe4 {[%emt 0:02:03]} ({Don't go for} 16. Qc5 $2 Nd3 17. Qf5+ Qxf5 18. Nxf5 Nxe1 $19) 16... Nd3 {[%emt 0:12:12]} 17. Rf1 {[%emt 0:00:07]} Bb6 {[%emt 0:14:00][%cal Rb6f2]} ({Not} 17... Nxb2 18. Na3 $15) 18. Qf5+ {[%emt 0:05:25]} Qxf5 {[%emt 0:01:47]} 19. Nxf5 {[%emt 0:00:02]} Nxf2 {[%emt 0:01:50]} (19... g6 $17 20. Nd4 Nxb2) 20. Nd4 {[%emt 0:01:14]} (20. Na3 $1 $15 Ne4+ 21. Nd4) 20... Ng4 {[%emt 0:09:45]} (20... Nd3 $17 21. Na3 f6) 21. Rf4 {[%emt 0:10:22]} f5 {[%emt 0:03:09] aiming for ...g5.} 22. Na3 $1 {[%emt 0:00:17]} g5 {[%emt 0:02:31]} (22... Ne3 $15 {might be stronger.}) 23. Rxf5 $11 {[%emt 0:02:24] The position is equal.} Rxd4 {[%emt 0:00:02]} 24. cxd4 {[%emt 0:00:05]} Bxd4+ {[%emt 0:00:08]} 25. Kh1 {[%emt 0:00:07]} Nf2+ {[%emt 0:02:32]} 26. Kg1 {[%emt 0:01:24]} Ng4+ {[%emt 0:02:02]} 27. Kh1 {[%emt 0:00:07] Weighted Error Value: White=0.23 (precise) /Black=0.22 (precise)} 1/2-1/2